[Event "1000GM Spring GM-B 2024"]
[Site "New York"]
[Date "2024.03.29"]
[Round "4.1"]
[White "Eidelman, Gabriel"]
[Black "Luo, Terry"]
[Result "1-0"]
[ECO "E73"]
[WhiteElo "2374"]
[BlackElo "2333"]
[Annotator "RC"]
[PlyCount "77"]
[EventDate "2024.03.26"]
[EventType "tourn"]
[EventCountry "USA"]
[SourceTitle "playchess.com"]
[Source "ChessBase"]
[SourceQuality "1"]
[TimeControl "5400+30"]

1. d4 {[%emt 0:00:04]} Nf6 {[%emt 0:00:04]} 2. c4 {[%emt 0:00:07]} g6 {[%emt 0:00:02]} 3. Nc3 {[%emt 0:00:07]} Bg7 {[%emt 0:00:03]} 4. e4 {[%emt 0:00:08]} d6 {[%emt 0:00:02]} 5. Be2 {[%emt 0:00:08]} O-O {[%emt 0:00:08]} 6. Be3 {[%emt 0:00:06]} c5 {[%emt 0:00:19]} 7. d5 {[%emt 0:00:06]} e6 {[%emt 0:00:04]} 8. Nf3 {[%emt 0:00:07]} exd5 {[%emt 0:00:03]} 9. cxd5 {[%emt 0:00:08]} b5 {[%emt 0:00:12]} 10. e5 {[%emt 0:00:16]} dxe5 {[%emt 0:00:02]} 11. Bxc5 {[%emt 0:00:16]} Re8 {[%emt 0:00:03]} 12. Bxb5 {[%emt 0:00:11]} Nbd7 {[%emt 0:00:03]} 13. Be3 {[%emt 0:01:26]} Ng4 {[%emt 0:00:12]} 14. O-O {[%emt 0:00:08]} Nxe3 {[%emt 0:00:21]} 15. fxe3 {[%emt 0:00:08]} Rb8 {[%emt 0:05:45]} 16. Qe2 {[%emt 0:01:49]} Rf8 {[%emt 0:09:59]} 17. Rad1 {[%emt 0:10:26]} Nc5 {[%emt 0:06:21]} 18. d6 {[%emt 0:08:13]} a6 {[%emt 0:04:05]} 19. Bc4 {[%emt 0:03:17]} Rb6 {[%emt 0:10:07]} 20. b4 {[%emt 0:12:26]} Rxb4 {[%emt 0:12:06]} 21. Nd5 {[%emt 0:05:38]} Rb7 {[%emt 0:00:08]} 22. Bxa6 {[%emt 0:07:13]} Nxa6 {[%emt 0:04:15]} 23. Qxa6 {[%emt 0:00:09]} Rd7 {[%emt 0:00:51]} 24. Ne7+ {[%emt 0:01:56]} Kh8 {[%emt 0:00:15]} 25. Qc4 {[%emt 0:05:57]} Bf6 {[%emt 0:03:07]} 26. Nc6 {[%emt 0:12:55]} Qb6 {[%emt 0:02:18]} 27. Qe4 {[%emt 0:00:12]} Qc5 {[%emt 0:09:18]} 28. Ncxe5 {[%emt 0:06:21]} Rxd6 {[%emt 0:00:14]} 29. Nxf7+ {[%emt 0:02:11]} Rxf7 {[%emt 0:00:01]} 30. Qe8+ {[%emt 0:00:06]} Kg7 {[%emt 0:00:03]} 31. Rxd6 {[%emt 0:00:04]} Qxd6 {[%emt 0:00:20]} 32. Qxc8 {[%emt 0:00:07]} Re7 {[%emt 0:01:02]} 33. Re1 {[%emt 0:02:18]} Qa3 {[%emt 0:02:55]} 34. e4 {[%emt 0:06:20]} Bc3 {[%emt 0:01:16]} 35. Rf1 {[%emt 0:03:28]} Bb2 {[%emt 0:00:46]} 36. Ng5 {[%emt 0:02:49]} Re5 {[%emt 0:08:28]} 37. Qd7+ {[%emt 0:01:10]} Re7 {[%emt 0:00:16]} 38. Ne6+ {[%emt 0:00:06]} Kh6 {[%emt 0:00:17]} 39. Qd2+ {[%emt 0:00:04]} 1-0

[Event "1000GM Spring GM-B 2024"]
[Site "New York"]
[Date "2024.03.29"]
[Round "4.2"]
[White "Sinha, Sahil"]
[Black "Paragua, Mark"]
[Result "1/2-1/2"]
[ECO "D45"]
[WhiteElo "2299"]
[BlackElo "2451"]
[Annotator "TA"]
[PlyCount "54"]
[EventDate "2024.03.26"]
[EventType "tourn"]
[EventCountry "USA"]
[SourceTitle "playchess.com"]
[Source "ChessBase"]
[SourceQuality "1"]
[TimeControl "5400+30"]

{[%evp 23,54,0,0,0,0,10,22,0,6,-6,0,0,0,0,6,4,4,8,10,8,5,2,5,10,9,16,2,9,9,10,8,6,7]} 1. d4 d5 {[%emt 0:03:24]} 2. c4 {[%emt 0:00:09]} e6 {[%emt 0:00:16]} 3. Nc3 {[%emt 0:00:18]} Nf6 {[%emt 0:00:16]} 4. Nf3 {[%emt 0:00:07]} c6 {[%emt 0:00:28]} 5. e3 {[%emt 0:00:43]} Nbd7 {[%emt 0:00:22]} 6. Qc2 {[%emt 0:00:06]} Bd6 {[%emt 0:00:16]} 7. b3 {[%emt 0:00:16]} O-O {[%emt 0:00:12]} 8. Be2 {[%emt 0:00:13]} b6 {[%emt 0:00:43]} 9. O-O {[%emt 0:00:27]} Bb7 {[%emt 0:00:13]} 10. Bb2 {[%emt 0:00:07]} Qe7 {[%emt 0:01:09]} 11. Rad1 {[%emt 0:00:23]} Rad8 {[%emt 0:00:26]} 12. Rfe1 {[%emt 0:00:39]} Rfe8 {[%emt 0:00:18] The position is equal.} 13. Bf1 {[%emt 0:01:07]} c5 {[%emt 0:02:35]} 14. cxd5 {[%emt 0:00:36]} exd5 {[%emt 0:00:36]} 15. g3 {[%emt 0:00:36]} Rc8 {[%emt 0:03:53]} 16. Bg2 {[%emt 0:02:04]} cxd4 {[%emt 0:05:34]} 17. Nxd4 {[%emt 0:04:33]} Bb4 {[%emt 0:02:51]} 18. Qd2 {[%emt 0:02:38][%cal Oa2a3]} Qc5 {[%emt 0:07:00]} ({Much worse is} 18... Ne4 $6 19. Bxe4 Bxc3 (19... dxe4 $2 20. Nf5 $18) 20. Bxh7+ Kxh7 21. Bxc3 $16) 19. Ndb5 {[%emt 0:06:32][%cal Oa2a3]} a6 {[%emt 0:43:16]} (19... Ba6 $5 20. a3 $8 (20. Nxa7 $2 {perishes.} Rc7 $19) 20... Bxb5 21. axb4 Qxb4 $11) 20. a3 $1 {[%emt 0:01:19]} (20. Bxd5 $2 {is the wrong capture.} Nxd5 $19 (20... axb5 $2 21. Bxb7 Rc7 22. Ba6 $19) (20... axb5 21. Bxb7 Rc7 22. Ba6 $19)) 20... Qxb5 {[%emt 0:00:23]} 21. axb4 {[%emt 0:00:51]} Qxb4 {[%emt 0:00:09]} 22. Nxd5 {[%emt 0:05:56]} Qxd2 {[%emt 0:01:54]} 23. Rxd2 {[%emt 0:03:09] [#] Black must now prevent Nxf6+.} Nxd5 {[%emt 0:00:51]} 24. Bxd5 {[%emt 0:00:04]} Bxd5 {[%emt 0:00:31]} 25. Rxd5 {[%emt 0:00:06]} Nc5 {[%emt 0:00:06]} 26. Bd4 {[%emt 0:00:52]} Nxb3 {[%emt 0:07:46]} 27. Bxb6 {[%emt 0:00:12]} Rb8 {[%emt 0:06:11] A rather calm draw.   Weighted Error Value: White=0.01 (flawless) /Black=0.01 (flawless) .  OK:         	White=7     	Black=10     Best:        	White=1     	---        Strong:       	White=1     	---} 1/2-1/2

[Event "1000GM Spring GM-B 2024"]
[Site "New York"]
[Date "2024.03.29"]
[Round "4.3"]
[White "Kaliksteyn, Alexander"]
[Black "Furfine, Jacob"]
[Result "0-1"]
[ECO "A13"]
[WhiteElo "2356"]
[BlackElo "2343"]
[Annotator "RC"]
[PlyCount "86"]
[EventDate "2024.03.26"]
[EventType "tourn"]
[EventCountry "USA"]
[SourceTitle "playchess.com"]
[Source "ChessBase"]
[SourceQuality "1"]
[TimeControl "5400+30"]

1. c4 {[%emt 0:00:09]} e6 {[%emt 0:00:06]} 2. Nf3 {[%emt 0:03:49]} d5 {[%emt 0:00:54]} 3. e3 {[%emt 0:00:35]} Nf6 {[%emt 0:00:24]} 4. Nc3 {[%emt 0:00:07]} a6 {[%emt 0:00:41]} 5. b3 {[%emt 0:02:38]} c5 {[%emt 0:00:11]} 6. Bb2 {[%emt 0:06:36]} Nc6 {[%emt 0:00:06]} 7. d4 {[%emt 0:14:46]} dxc4 {[%emt 0:01:33]} 8. bxc4 {[%emt 0:01:09]} cxd4 {[%emt 0:02:48]} 9. exd4 {[%emt 0:00:21]} Bb4 {[%emt 0:01:18]} 10. Be2 {[%emt 0:01:48]} Ne4 {[%emt 0:10:39]} 11. Rc1 {[%emt 0:06:26]} Qa5 {[%emt 0:31:13]} 12. Qb3 {[%emt 0:10:50]} e5 {[%emt 0:01:26]} 13. dxe5 {[%emt 0:05:14]} Nc5 {[%emt 0:01:24]} 14. Qc2 {[%emt 0:01:28]} Qxa2 {[%emt 0:05:50]} 15. O-O {[%emt 0:00:29]} Bxc3 {[%emt 0:01:46]} 16. Bxc3 {[%emt 0:03:08]} Qxc2 {[%emt 0:00:04]} 17. Rxc2 {[%emt 0:00:04]} Bf5 {[%emt 0:00:12]} 18. Rd2 {[%emt 0:03:23]} Ne4 {[%emt 0:01:02]} 19. Rd3 {[%emt 0:00:22]} Nxc3 {[%emt 0:00:37]} 20. Rxc3 {[%emt 0:00:01]} O-O-O {[%emt 0:00:23]} 21. Nh4 {[%emt 0:02:28]} Nd4 {[%emt 0:03:10]} 22. Bd1 {[%emt 0:00:25]} Be6 {[%emt 0:03:42]} 23. f4 {[%emt 0:01:58]} h6 {[%emt 0:01:42]} 24. Nf3 {[%emt 0:02:16]} Kc7 {[%emt 0:04:55]} 25. Kf2 {[%emt 0:05:57]} Kc6 {[%emt 0:02:32]} 26. Ba4+ {[%emt 0:04:59]} Kc5 {[%emt 0:00:52]} 27. Rb1 {[%emt 0:00:08]} Nxf3 {[%emt 0:01:27]} 28. Kxf3 {[%emt 0:00:30]} b6 {[%emt 0:01:23]} 29. Bd1 {[%emt 0:07:05]} Rd4 {[%emt 0:01:59]} 30. Be2 {[%emt 0:00:41]} g5 {[%emt 0:06:01]} 31. g3 {[%emt 0:00:06]} gxf4 {[%emt 0:00:09]} 32. gxf4 {[%emt 0:00:02]} Rg8 {[%emt 0:00:09]} 33. Ke3 {[%emt 0:03:17]} Rgd8 {[%emt 0:01:22]} 34. Ra1 {[%emt 0:03:17]} Bf5 {[%emt 0:03:14]} 35. Rxa6 {[%emt 0:01:42]} Re4+ {[%emt 0:00:17]} 36. Kf3 {[%emt 0:00:27]} Rd2 {[%emt 0:01:38]} 37. Bd3 {[%emt 0:08:14]} Kd4 {[%emt 0:00:17]} 38. Bxe4 {[%emt 0:00:06]} Bxe4+ {[%emt 0:00:07]} 39. Kg3 {[%emt 0:00:12]} Rg2+ {[%emt 0:01:23]} 40. Kh3 {[%emt 0:00:07]} Kxc3 {[%emt 0:00:05]} 41. Rxb6 {[%emt 0:00:18]} Rg6 {[%emt 0:00:19]} 42. c5 {[%emt 0:02:30]} Kd4 {[%emt 0:01:17]} 43. c6 {[%emt 0:00:51]} Rxc6 {[%emt 0:02:34]} 0-1

[Event "1000GM Spring GM-B 2024"]
[Site "New York"]
[Date "2024.03.29"]
[Round "4.4"]
[White "Griffith, Kyron"]
[Black "Mandizha, Farai"]
[Result "1-0"]
[ECO "B76"]
[WhiteElo "2352"]
[BlackElo "2380"]
[Annotator "RC"]
[PlyCount "61"]
[EventDate "2024.03.26"]
[EventType "tourn"]
[EventCountry "USA"]
[SourceTitle "playchess.com"]
[Source "ChessBase"]
[SourceQuality "1"]
[TimeControl "5400+30"]

1. e4 {[%emt 0:00:24]} c5 {[%emt 0:27:56]} 2. Nc3 {[%emt 0:00:10]} Nc6 {[%emt 0:00:10]} 3. Nf3 {[%emt 0:00:10]} g6 {[%emt 0:00:27]} 4. d4 {[%emt 0:00:26]} cxd4 {[%emt 0:00:02]} 5. Nxd4 {[%emt 0:00:06]} Bg7 {[%emt 0:00:02]} 6. Be3 {[%emt 0:00:14]} d6 {[%emt 0:00:22]} 7. Qd2 {[%emt 0:00:31]} Nf6 {[%emt 0:00:14]} 8. f3 {[%emt 0:00:08]} O-O {[%emt 0:00:11]} 9. O-O-O {[%emt 0:00:35]} d5 {[%emt 0:00:11]} 10. Nxc6 {[%emt 0:00:36]} bxc6 {[%emt 0:00:05]} 11. Bh6 {[%emt 0:00:08]} Bxh6 {[%emt 0:03:40]} 12. Qxh6 {[%emt 0:00:04]} Qb6 {[%emt 0:00:18]} 13. e5 {[%emt 0:08:27]} Nd7 {[%emt 0:00:02]} 14. h4 {[%emt 0:00:21]} Re8 {[%emt 0:00:18]} 15. e6 {[%emt 0:02:11]} Nf8 {[%emt 0:00:13]} 16. exf7+ {[%emt 0:00:21]} Kxf7 {[%emt 0:00:41]} 17. h5 {[%emt 0:01:35]} e5 {[%emt 0:00:59]} 18. hxg6+ {[%emt 0:05:11]} hxg6 {[%emt 0:00:04]} 19. Bd3 {[%emt 0:01:39]} Rb8 {[%emt 0:03:15]} 20. b3 {[%emt 0:02:51]} Qa5 {[%emt 0:12:35]} 21. Kb2 {[%emt 0:01:57]} Ba6 {[%emt 0:00:04]} 22. Bxg6+ {[%emt 0:05:26]} Nxg6 {[%emt 0:00:07]} 23. Qh7+ {[%emt 0:00:03]} Kf6 {[%emt 0:02:40]} 24. Ne4+ {[%emt 0:00:05]} dxe4 {[%emt 0:00:13]} 25. Rd6+ {[%emt 0:00:04]} Re6 {[%emt 0:00:17]} 26. Rxe6+ {[%emt 0:00:05]} Kxe6 {[%emt 0:00:03]} 27. Qxg6+ {[%emt 0:00:07]} Kd5 {[%emt 0:00:15]} 28. Qxe4+ {[%emt 0:01:53]} Kd6 {[%emt 0:01:47]} 29. Rh6+ {[%emt 0:00:06]} Ke7 {[%emt 0:00:08]} 30. Qh7+ {[%emt 0:00:24]} Kd8 {[%emt 0:00:10]} 31. Rd6+ {[%emt 0:00:11]} 1-0

[Event "1000GM Spring GM-B 2024"]
[Site "New York"]
[Date "2024.03.29"]
[Round "4.5"]
[White "Nagy, Gabor"]
[Black "Girish, A. Koushik"]
[Result "1/2-1/2"]
[ECO "D13"]
[WhiteElo "2436"]
[BlackElo "2499"]
[Annotator "TA"]
[PlyCount "31"]
[EventDate "2024.03.26"]
[EventType "tourn"]
[EventCountry "USA"]
[SourceTitle "playchess.com"]
[Source "ChessBase"]
[SourceQuality "1"]
[TimeControl "5400+30"]

{[%evp 21,31,10,15,5,7,8,2,0,0,0,6,8]} 1. d4 {[%emt 0:06:16]} d5 {[%emt 0:00:11]} 2. c4 {[%emt 0:00:06]} c6 {[%emt 0:00:06]} 3. cxd5 {[%emt 0:00:04]} cxd5 {[%emt 0:00:07]} 4. Nf3 {[%emt 0:00:04]} Nc6 {[%emt 0:00:06]} 5. Nc3 {[%emt 0:00:04]} Nf6 {[%emt 0:00:10]} 6. Bf4 {[%emt 0:00:05]} a6 {[%emt 0:00:13]} 7. e3 {[%emt 0:00:07]} Bf5 {[%emt 0:00:05]} 8. Bd3 {[%emt 0:00:04]} Bxd3 {[%emt 0:00:10]} 9. Qxd3 {[%emt 0:00:06]} e6 {[%emt 0:00:04]} 10. O-O {[%emt 0:00:07]} Bd6 {[%emt 0:00:09]} 11. Bxd6 {[%emt 0:00:08]} Qxd6 {[%emt 0:00:08] The position is equal.} 12. Rfc1 {[%emt 0:00:04]} O-O {[%emt 0:00:09]} 13. h3 {[%emt 0:00:04]} Rac8 {[%emt 0:00:08]} 14. a3 {[%emt 0:00:06]} h6 {[%emt 0:00:07]} 15. Rc2 {[%emt 0:00:05]} Rc7 {[%emt 0:00:06]} 16. Rac1 {[%emt 0:00:04] Not much happened in this game.   Weighted Error Value: White=0.03 (flawless) /Black=0.02 (flawless) .  OK:         	White=1     	---} 1/2-1/2

[Event "1000GM Spring GM-B 2024"]
[Site "New York"]
[Date "2024.03.30"]
[Round "5.1"]
[White "Girish, A. Koushik"]
[Black "Eidelman, Gabriel"]
[Result "1/2-1/2"]
[ECO "D37"]
[WhiteElo "2499"]
[BlackElo "2374"]
[Annotator "TA"]
[PlyCount "182"]
[EventDate "2024.03.26"]
[EventType "tourn"]
[EventCountry "USA"]
[SourceTitle "playchess.com"]
[Source "ChessBase"]
[SourceQuality "1"]
[TimeControl "5400+30"]

{[%evp 114,181,0,0,0,0,0,0,0,0,0,0,0,0,0,0,0,0,0,0,0,0,0,0,0,0,0,0,0,0,0,0,0,0,0,0,0,0,0,0,0,0,0,0,0,0,0,0,0,0,0,0,0,0,0,0,0,0,0,0,0,0,0,0,0,0,0,0,0,0]} 1. d4 {[%emt 0:00:54]} d5 {[%emt 0:00:07]} 2. Nf3 {[%emt 0:00:10]} e6 {[%emt 0:00:07]} 3. c4 {[%emt 0:00:48]} a6 {[%emt 0:00:13]} 4. cxd5 {[%emt 0:04:44]} exd5 {[%emt 0:00:08]} 5. Nc3 {[%emt 0:00:04]} Nf6 {[%emt 0:00:15]} 6. Bg5 {[%emt 0:05:35] D37: Damengambit (5.Lf4).} Be6 {[%emt 0:00:09]} 7. e3 {[%emt 0:00:46]} Nbd7 {[%emt 0:00:16]} 8. Bd3 {[%emt 0:00:21]} c6 {[%emt 0:00:12]} 9. h3 {[%emt 0:00:34]} Bd6 {[%emt 0:00:35]} 10. Bf4 {[%emt 0:01:34]} Qc7 {[%emt 0:00:20]} 11. Bxd6 {[%emt 0:00:37]} Qxd6 {[%emt 0:00:08]} 12. O-O {[%emt 0:00:06]} O-O {[%emt 0:00:44]} 13. Rb1 {[%emt 0:00:18]} Qe7 {[%emt 0:04:24]} 14. Qc2 {[%emt 0:02:17]} g6 {[%emt 0:03:54]} 15. b4 {[%emt 0:03:27]} Rfc8 $146 {[%emt 0:03:23]} ({Predecessor:} 15... Ne8 16. Na4 Nd6 17. Ne5 Nxe5 18. dxe5 Nc4 19. Qc3 b5 20. Nc5 a5 21. a3 Rfd8 {½-½ Niemann,H (2660)-Pichot,A (2642) Arad op 16th 2023 (8)}) 16. Na4 {[%emt 0:08:54]} Ne8 {[%emt 0:01:08]} 17. Nc5 {[%emt 0:00:22]} Nd6 {[%emt 0:00:32]} 18. a4 {[%emt 0:01:15]} Nb6 {[%emt 0:16:59]} 19. Nd2 {[%emt 0:04:48]} Rc7 {[%emt 0:06:49]} 20. Nxe6 {[%emt 0:29:13]} Qxe6 {[%emt 0:04:03]} 21. b5 {[%emt 0:00:59]} axb5 {[%emt 0:03:46]} 22. axb5 {[%emt 0:00:06]} Rcc8 {[%emt 0:09:13]} 23. bxc6 {[%emt 0:07:25]} Rxc6 {[%emt 0:00:08]} 24. Qd1 {[%emt 0:01:10]} Nd7 {[%emt 0:06:32]} 25. Nf3 {[%emt 0:06:06]} Ra3 {[%emt 0:05:09]} 26. Rb3 {[%emt 0:02:42]} Rc3 {[%emt 0:01:07]} 27. Rxc3 {[%emt 0:03:25]} Rxc3 {[%emt 0:00:03]} 28. Qd2 {[%emt 0:00:06]} Rc6 {[%emt 0:04:01]} 29. Qa2 {[%emt 0:02:40]} Nf6 {[%emt 0:04:45]} 30. Rb1 {[%emt 0:00:59]} Qc8 {[%emt 0:03:45]} 31. Qa5 {[%emt 0:07:36]} Rc1+ {[%emt 0:06:46]} 32. Rxc1 {[%emt 0:00:05]} Qxc1+ {[%emt 0:00:03]} 33. Kh2 {[%emt 0:00:05]} Nde8 {[%emt 0:04:30]} 34. Ne5 {[%emt 0:01:20]} Qc7 {[%emt 0:00:04]} 35. Qa3 {[%emt 0:01:15]} Kg7 {[%emt 0:03:04]} 36. g3 {[%emt 0:01:54]} Nd6 {[%emt 0:03:16]} 37. Kg2 {[%emt 0:00:07]} Nd7 {[%emt 0:01:14]} 38. Nxd7 {[%emt 0:01:46]} Qxd7 {[%emt 0:00:04]} 39. Qc5 {[%emt 0:00:37]} Qc6 {[%emt 0:02:09]} 40. Kf3 {[%emt 0:01:15]} Kf6 {[%emt 0:01:36]} 41. h4 {[%emt 0:00:41]} Qxc5 {[%emt 0:02:03]} 42. dxc5 {[%emt 0:00:02]} Ne8 {[%emt 0:00:17]} 43. e4 {[%emt 0:00:38]} Ke6 {[%emt 0:02:56]} 44. Ke3 {[%emt 0:00:42]} Nf6 {[%emt 0:00:12]} 45. Kd4 {[%emt 0:01:04]} Nxe4 {[%emt 0:00:52]} 46. Bxe4 {[%emt 0:00:05]} dxe4 {[%emt 0:00:02]} 47. Kxe4 {[%emt 0:00:04]} h5 {[%emt 0:01:11]} 48. f3 {[%emt 0:00:53]} Kd7 {[%emt 0:00:38]} 49. Kd5 {[%emt 0:00:10]} Ke7 {[%emt 0:00:36]} 50. Ke5 {[%emt 0:01:21]} f6+ {[%emt 0:00:31]} 51. Kd5 {[%emt 0:00:04]} g5 {[%emt 0:00:26]} 52. f4 {[%emt 0:00:22]} gxf4 {[%emt 0:00:30]} 53. gxf4 {[%emt 0:00:01]} Kd7 {[%emt 0:00:07]} 54. f5 {[%emt 0:02:19]} Ke7 {[%emt 0:00:02]} 55. Kc4 {[%emt 0:00:37]} Kd7 {[%emt 0:00:42]} 56. Kd5 {[%emt 0:00:17]} Ke7 {[%emt 0:00:03]} 57. c6 {[%emt 0:00:18]} b6 {[%emt 0:00:03]} ({Schlechter ist} 57... bxc6+ 58. Kxc6 Kf8 59. Kd7 Kf7 60. Kd6) 58. c7 $1 {[%emt 0:00:08]} Kd7 {[%emt 0:00:02]} 59. c8=Q+ {[%emt 0:00:08]} Kxc8 {[%emt 0:00:03]} 60. Ke6 {[%emt 0:00:43]} b5 {[%emt 0:00:06]} 61. Kxf6 {[%emt 0:00:02]} b4 {[%emt 0:00:05]} 62. Kg7 {[%emt 0:00:49]} b3 {[%emt 0:00:09]} 63. f6 {[%emt 0:00:03]} b2 {[%emt 0:00:02]} 64. f7 {[%emt 0:00:02]} b1=Q {[%emt 0:00:06]} 65. f8=Q+ {[%emt 0:00:04]} (65. f8=B {führt zum Matt.} Qf5 66. Be7 Kd7 67. Bg5 Ke6) 65... Kd7 {[%emt 0:00:45]} 66. Qf7+ {[%emt 0:00:04]} Kd6 {[%emt 0:01:04]} 67. Qxh5 {[%emt 0:00:13]} Qb2+ {[%emt 0:00:37]} 68. Kh7 {[%emt 0:01:36]} Qf6 {[%emt 0:03:47]} 69. Qg6 {[%emt 0:00:40]} Ke7 {[%emt 0:00:32]} 70. h5 {[%emt 0:00:20]} Qf7+ {[%emt 0:00:24]} 71. Qg7 {[%emt 0:00:32]} Ke8 {[%emt 0:00:49]} 72. h6 {[%emt 0:00:40]} Ke7 {[%emt 0:00:28]} 73. Kh8 {[%emt 0:00:22]} Ke8 {[%emt 0:00:37]} 74. Qe5+ {[%emt 0:00:28]} Kd7 {[%emt 0:00:24]} 75. Qb5+ {[%emt 0:01:01]} Ke6 {[%emt 0:00:28]} 76. Qc6+ {[%emt 0:00:49]} Kf5 {[%emt 0:00:22]} 77. Qc5+ {[%emt 0:00:52]} Ke6 {[%emt 0:00:32]} 78. Qc8+ {[%emt 0:01:04]} Ke7 {[%emt 0:00:31]} 79. Qc7+ {[%emt 0:00:24]} Ke6 {[%emt 0:00:36]} 80. Qd8 {[%emt 0:00:35]} Kf5 {[%emt 0:00:08]} 81. Qg8 {[%emt 0:00:40]} Kf6 {[%emt 0:00:18]} 82. Qd8+ {[%emt 0:00:25]} Ke6 {[%emt 0:00:09]} 83. h7 {[%emt 0:00:36]} Kf5 {[%emt 0:00:08]} 84. Qd6 {[%emt 0:00:15]} Kg5 {[%emt 0:00:47]} 85. Qd8+ {[%emt 0:00:41]} Kg6 {[%emt 0:00:13]} 86. Qd6+ {[%emt 0:00:23]} Kg5 {[%emt 0:02:26]} 87. Qg3+ {[%emt 0:00:26]} Kf6 {[%emt 0:00:00]} 88. Qh4+ {[%emt 0:00:22]} Kg6 {[%emt 0:00:00]} 89. Qg4+ {[%emt 0:00:18]} Kf6 {[%emt 0:00:00]} 90. Qf4+ {[%emt 0:00:13]} Kg6 {[%emt 0:00:00]} 91. Qxf7+ {[%emt 0:00:06]} Kxf7 {[%emt 0:00:00]} 1/2-1/2

[Event "1000GM Spring GM-B 2024"]
[Site "New York"]
[Date "2024.03.30"]
[Round "5.3"]
[White "Furfine, Jacob"]
[Black "Griffith, Kyron"]
[Result "1/2-1/2"]
[ECO "D24"]
[WhiteElo "2343"]
[BlackElo "2352"]
[Annotator "RC"]
[PlyCount "77"]
[EventDate "2024.03.26"]
[EventType "tourn"]
[EventCountry "USA"]
[SourceTitle "playchess.com"]
[Source "ChessBase"]
[SourceQuality "1"]
[TimeControl "5400+30"]

1. d4 {[%emt 0:00:52]} Nf6 {[%emt 0:01:15]} 2. c4 {[%emt 0:00:18]} e6 {[%emt 0:00:26]} 3. Nf3 {[%emt 0:00:05]} d5 {[%emt 0:00:27]} 4. Nc3 {[%emt 0:00:05]} dxc4 {[%emt 0:00:52]} 5. e4 {[%emt 0:00:07]} b5 {[%emt 0:00:32]} 6. e5 {[%emt 0:00:10]} Nd5 {[%emt 0:00:06]} 7. Nxb5 {[%emt 0:00:05]} Nb6 {[%emt 0:00:05]} 8. Be2 {[%emt 0:00:07]} Be7 {[%emt 0:00:10]} 9. Be3 {[%emt 0:00:05]} Bb7 {[%emt 0:00:39]} 10. a3 {[%emt 0:00:14]} a6 {[%emt 0:02:58]} 11. Nc3 {[%emt 0:00:06]} N8d7 {[%emt 0:00:07]} 12. Qc2 {[%emt 0:04:47]} c5 {[%emt 0:03:44]} 13. Ne4 {[%emt 0:04:12]} cxd4 {[%emt 0:04:32]} 14. Bxd4 {[%emt 0:00:20]} Rc8 {[%emt 0:01:39]} 15. O-O {[%emt 0:05:10]} O-O {[%emt 0:04:03]} 16. Rfd1 {[%emt 0:01:25]} Qc7 {[%emt 0:10:17]} 17. Neg5 {[%emt 0:16:05]} g6 {[%emt 0:00:50]} 18. h4 {[%emt 0:02:36]} Qc6 {[%emt 0:02:22]} 19. Bxb6 {[%emt 0:08:26]} Nxb6 {[%emt 0:00:30]} 20. Rd4 {[%emt 0:00:06]} Rfd8 {[%emt 0:05:42]} 21. Rad1 {[%emt 0:00:24]} Rxd4 {[%emt 0:16:18]} 22. Rxd4 {[%emt 0:00:03]} Bxg5 {[%emt 0:02:07]} 23. hxg5 {[%emt 0:00:06]} Qc5 {[%emt 0:00:06]} 24. Rd6 {[%emt 0:14:00]} Nd5 {[%emt 0:05:29]} 25. Qe4 {[%emt 0:12:43]} c3 {[%emt 0:04:19]} 26. bxc3 {[%emt 0:00:07]} Nxc3 {[%emt 0:10:29]} 27. Qxb7 {[%emt 0:00:36]} Nxe2+ {[%emt 0:00:04]} 28. Kh2 {[%emt 0:00:58]} Rf8 {[%emt 0:00:38]} 29. Qb6 {[%emt 0:05:35]} Qxa3 {[%emt 0:00:53]} 30. Qxa6 {[%emt 0:01:18]} Qxa6 {[%emt 0:00:45]} 31. Rxa6 {[%emt 0:00:02]} Nf4 {[%emt 0:00:08]} 32. g3 {[%emt 0:03:19]} Nd5 {[%emt 0:01:04]} 33. Kg2 {[%emt 0:01:30]} h6 {[%emt 0:02:59]} 34. Ra7 {[%emt 0:00:46]} hxg5 {[%emt 0:08:25]} 35. Nxg5 {[%emt 0:00:05]} f6 {[%emt 0:01:37]} 36. Nxe6 {[%emt 0:10:35]} Re8 {[%emt 0:00:15]} 37. Nf4 {[%emt 0:01:04]} Nxf4+ {[%emt 0:00:07]} 38. gxf4 {[%emt 0:00:03]} fxe5 {[%emt 0:00:05]} 39. fxe5 {[%emt 0:00:04]} 1/2-1/2

[Event "1000GM Spring GM-B 2024"]
[Site "New York"]
[Date "2024.03.30"]
[Round "5.4"]
[White "Paragua, Mark"]
[Black "Kaliksteyn, Alexander"]
[Result "1/2-1/2"]
[ECO "E04"]
[WhiteElo "2451"]
[BlackElo "2356"]
[Annotator "TA"]
[PlyCount "30"]
[EventDate "2024.03.26"]
[EventType "tourn"]
[EventCountry "USA"]
[SourceTitle "playchess.com"]
[Source "ChessBase"]
[SourceQuality "1"]
[TimeControl "5400+30"]

{[%evp 17,30,9,12,0,0,0,7,-12,-27,-22,-20,-57,-20,-17,-19]} 1. Nf3 {[%emt 0:03:17]} d5 {[%emt 0:00:05]} 2. g3 {[%emt 0:00:12]} c5 {[%emt 0:00:11]} 3. Bg2 {[%emt 0:00:09]} Nc6 {[%emt 0:00:11]} 4. d4 {[%emt 0:00:33]} e6 {[%emt 0:00:30]} 5. O-O {[%emt 0:00:37]} Nf6 {[%emt 0:00:03]} 6. c4 {[%emt 0:00:30]} dxc4 {[%emt 0:00:13]} 7. Ne5 {[%emt 0:00:33]} Bd7 {[%emt 0:03:39]} 8. Na3 {[%emt 0:01:13]} cxd4 {[%emt 0:07:14]} 9. Naxc4 {[%emt 0:00:43]} Be7 {[%emt 0:23:24]} 10. Qb3 {[%emt 0:02:31]} Qc7 {[%emt 0:06:28]} 11. Bf4 {[%emt 0:52:05]} Nh5 {[%emt 0:00:38]} 12. Rac1 {[%emt 0:16:38]} Nxf4 {[%emt 0:02:19]} 13. gxf4 {[%emt 0:00:21][%cal Oc4a5]} O-O {[%emt 0:09:04]} 14. Nxc6 {[%emt 0:02:29]} Bxc6 {[%emt 0:10:37]} 15. Ne5 {[%emt 0:00:24]} Rab8 {[%emt 0:02:44] Weighted Error Value: White=0.16 (very precise) /Black=0.09 (flawless) .  Inaccurate:     	White=1     	Black=1      OK:         	White=1     	Black=3      Best:        	White=1     	---} 1/2-1/2